fUSD/lending_fUSD_20250426
["ID","MTS","AMOUNT","RATE_DAILY","PERIOD"]
[359047574,1745674237739,-400.0,0.0001998,2]
[359047575,1745674237749,-400.0,0.0001998,2]
[359047576,1745674237759,-400.0,0.0001998,2]
[359047577,1745674237770,-500.0,0.0001998,2]
[359047578,1745674237780,-400.0,0.0001998,2]
[359047579,1745674237790,-1049.01,0.0001998,2]
[359047580,1745674237803,-225.87048118,0.0001998,2]
[359047581,1745674237814,-1697.34,0.0001998,2]
[359047582,1745674237825,-670.83,0.0001998,2]
[359047583,1745674237835,-400.0,0.0001998,2]
[359047584,1745674237846,-537.6,0.0001998,2]
[359047585,1745674237857,-400.0,0.0001998,2]
[359047587,1745674237867,-721.07,0.0001998,2]
[359047589,1745674237878,-400.0,0.0001998,2]
[359047590,1745674237888,-500.0,0.0001998,2]
[359047591,1745674237898,-400.0,0.0001998,2]
[359047592,1745674237908,-750.53,0.0001998,2]
[359047593,1745674237917,-462.61,0.0001998,2]
[359047595,1745674237927,-503.38,0.0001998,2]
[359047597,1745674237937,-853.45,0.0001998,2]
[359047599,1745674237947,-683.797192,0.0001998,2]
[359047601,1745674237957,-613.79,0.0001998,2]
[359047603,1745674237967,-400.0,0.0001998,2]
[359047604,1745674237977,-532.63,0.0001998,2]
[359047606,1745674237986,-802.3,0.0001998,2]
[359047608,1745674237995,-798.74,0.0001998,2]
[359047610,1745674238005,-770.01,0.0001998,2]
[359047612,1745674238016,-159.581833,0.0001998,2]
[359047614,1745674238025,-623.02,0.0001998,2]
[359047616,1745674238035,-552.39,0.0001998,2]
[359047619,1745674238045,-150.389111,0.0001998,2]
[359047621,1745674238055,-400.0,0.0001998,2]
[359047623,1745674238065,-556.43,0.0001998,2]
[359047625,1745674238075,-179.55021823,0.0001998,2]
[359047627,1745674238084,-400.0,0.0001998,2]
[359047629,1745674238094,-400.0,0.0001998,2]
[359047631,1745674238104,-175.18993007,0.0001998,2]
[359047633,1745674238113,-538.72,0.0001998,2]
[359047635,1745674238123,-32.52110983,0.0001998,2]
[359047640,1745674238164,-806.59889017,0.0001998,2]
[359047642,1745674238174,-626.72,0.0001998,2]
[359047644,1745674238184,-434.04,0.0001998,2]
[359047646,1745674238194,-400.0,0.0001998,2]
[359047648,1745674238203,-400.0,0.0001998,2]
[359047650,1745674238213,-400.0,0.0001998,2]
[359047652,1745674238222,-632.49,0.0001998,2]
[359047654,1745674238231,-1025.3,0.0001998,2]
[359047656,1745674238241,-1313.98,0.0001998,2]
[359047658,1745674238251,-400.0,0.0001998,2]
[359047660,1745674238261,-400.0,0.0001998,2]
[359047662,1745674238271,-400.0,0.0001998,2]
[359047664,1745674238280,-970.57,0.0001998,2]
[359047666,1745674238290,-1124.72,0.0001998,2]
[359047668,1745674238299,-613.78,0.0001998,2]
[359047670,1745674238309,-400.0,0.0001998,2]
[359047672,1745674238319,-427.58,0.0001998,2]
[359047674,1745674238328,-400.0,0.0001998,2]
[359047676,1745674238338,-400.0,0.0001998,2]
[359047678,1745674238348,-400.0,0.0001998,2]
[359047680,1745674238358,-995.7,0.0001998,2]
[359047682,1745674238368,-601.7,0.0001998,2]
[359047684,1745674238378,-608.36,0.0001998,2]
[359047686,1745674238388,-400.0,0.0001998,2]
[359047688,1745674238398,-400.0,0.0001998,2]
[359047690,1745674238408,-670.93,0.0001998,2]
[359047692,1745674238417,-400.0,0.0001998,2]
[359047694,1745674238430,-400.0,0.0001998,2]
[359047697,1745674238441,-458.66,0.0001998,2]
[359047699,1745674238450,-200.0,0.0001998,2]
[359047700,1745674238460,-498.67,0.0001998,2]
[359047702,1745674238470,-400.0,0.0001998,2]
[359047704,1745674238480,-400.0,0.0001998,2]
[359047706,1745674238490,-400.0,0.0001998,2]
[359047708,1745674238501,-563.05,0.0001998,2]
[359047710,1745674238510,-400.0,0.0001998,2]
[359047712,1745674238521,-400.0,0.0001998,2]
[359047714,1745674238530,-400.0,0.0001998,2]
[359047716,1745674238540,-727.67,0.0001998,2]
[359047718,1745674238550,-738.17,0.0001998,2]
[359047720,1745674238559,-708.08,0.0001998,2]
[359047722,1745674238570,-400.0,0.0001998,2]
[359047724,1745674238579,-906.67,0.0001998,2]
[359047726,1745674238590,-480.31,0.0001998,2]
[359047728,1745674238600,-400.0,0.0001998,2]
[359047730,1745674238610,-400.0,0.0001998,2]
[359047732,1745674238619,-400.0,0.0001998,2]
[359047734,1745674238629,-411.33,0.0001998,2]
[359047736,1745674238639,-573.22,0.0001998,2]
[359047738,1745674238650,-552.52,0.0001998,2]
[359047740,1745674238660,-915.8,0.0001998,2]
[359047742,1745674238671,-584.08,0.0001998,2]
[359047744,1745674238683,-400.0,0.0001998,2]
[359047746,1745674238694,-440.15,0.0001998,2]
[359047748,1745674238704,-543.73,0.0001998,2]
[359047750,1745674238714,-400.0,0.0001998,2]
[359047752,1745674238723,-3045.98,0.0001998,2]
[359047754,1745674238733,-116280.09016484,0.0001998,2]
[359047756,1745674238743,-470.57,0.0001998,2]
[359047758,1745674238753,-400.0,0.0001998,2]
[359047760,1745674238765,-400.0,0.0001998,2]
[359047762,1745674238774,-400.0,0.0001998,2]
[359047764,1745674238784,-400.0,0.0001998,2]
[359047766,1745674238795,-539.84,0.0001998,2]
[359047768,1745674238809,-593.6,0.0001998,2]
[359047770,1745674238819,-717.82,0.0001998,2]
[359047772,1745674238829,-400.0,0.0001998,2]
[359047774,1745674238839,-400.0,0.0001998,2]
[359047776,1745674238849,-400.0,0.0001998,2]
[359047778,1745674238861,-784.69,0.0001998,2]
[359047780,1745674238870,-400.0,0.0001998,2]
[359047781,1745674238880,-552.7,0.0001998,2]
[359047783,1745674238890,-461.71,0.0001998,2]
[359047786,1745674238899,-438.46,0.0001998,2]
[359047787,1745674238910,-400.0,0.0001998,2]
[359047790,1745674238920,-542.67,0.0001998,2]
[359047792,1745674238929,-618.85,0.0001998,2]
[359047793,1745674238939,-479.38,0.0001998,2]
[359047795,1745674238949,-400.0,0.0001998,2]
[359047797,1745674238959,-600.47,0.0001998,2]
[359047799,1745674238969,-400.0,0.0001998,2]
[359047801,1745674238978,-460.93,0.0001998,2]
[359047803,1745674238988,-400.0,0.0001998,2]
[359047806,1745674238999,-609.61,0.0001998,2]
[359047807,1745674239009,-3504.85,0.0001998,2]
[359047809,1745674239018,-400.0,0.0001998,2]
[359047811,1745674239028,-400.0,0.0001998,2]
[359047813,1745674239038,-400.0,0.0001998,2]
[359047815,1745674239048,-862.47,0.0001998,2]
[359047817,1745674239058,-483.57,0.0001998,2]
[359047819,1745674239068,-703.55,0.0001998,2]
[359047821,1745674239078,-400.0,0.0001998,2]
[359047823,1745674239088,-680.32,0.0001998,2]
[359047825,1745674239098,-860.22,0.0001998,2]
[359047827,1745674239108,-707.6,0.0001998,2]
[359047829,1745674239117,-648.72,0.0001998,2]
[359047831,1745674239127,-400.0,0.0001998,2]
[359047833,1745674239136,-400.0,0.0001998,2]
[359047835,1745674239146,-968.29,0.0001998,2]
[359047837,1745674239156,-400.0,0.0001998,2]
[359047839,1745674239166,-566.6,0.0001998,2]
[359047841,1745674239176,-648.59,0.0001998,2]
[359047843,1745674239185,-547.26,0.0001998,2]
[359047845,1745674239196,-442.11,0.0001998,2]
[359047847,1745674239205,-1158.32,0.0001998,2]
[359047849,1745674239215,-400.0,0.0001998,2]
[359047851,1745674239225,-788.92,0.0001998,2]
[359047853,1745674239234,-400.0,0.0001998,2]
[359047855,1745674239244,-400.0,0.0001998,2]
[359047857,1745674239254,-602.64,0.0001998,2]
[359047859,1745674239264,-400.0,0.0001998,2]
[359047861,1745674239274,-400.0,0.0001998,2]
[359047863,1745674239284,-400.0,0.0001998,2]
[359047865,1745674239294,-400.0,0.0001998,2]
[359047867,1745674239304,-400.0,0.0001998,2]
[359047869,1745674239314,-824.95,0.0001998,2]
[359047871,1745674239324,-531.31,0.0001998,2]
[359047873,1745674239333,-780.19,0.0001998,2]
[359047875,1745674239342,-400.0,0.0001998,2]
[359047878,1745674239352,-728.07,0.0001998,2]
[359047881,1745674239362,-1254.22,0.0001998,2]
[359047884,1745674239373,-659.33,0.0001998,2]
[359047887,1745674239383,-576.17,0.0001998,2]
[359047889,1745674239393,-662.07,0.0001998,2]
[359047891,1745674239403,-489.91,0.0001998,2]
[359047893,1745674239414,-400.0,0.0001998,2]
[359047895,1745674239423,-1168.14,0.0001998,2]
[359047897,1745674239434,-818.07,0.0001998,2]
[359047899,1745674239443,-452.1,0.0001998,2]
[359047901,1745674239454,-400.0,0.0001998,2]
[359047903,1745674239463,-411.79,0.0001998,2]
[359047905,1745674239473,-487.67,0.0001998,2]
[359047907,1745674239483,-708.08,0.0001998,2]
[359047909,1745674239492,-400.0,0.0001998,2]
[359047911,1745674239503,-1021.23,0.0001998,2]
[359047913,1745674239512,-938.2,0.0001998,2]
[359047915,1745674239521,-571.88,0.0001998,2]
[359047917,1745674239531,-519.56,0.0001998,2]
[359047919,1745674239541,-433.42,0.0001998,2]
[359047921,1745674239551,-165.37377652,0.0001998,2]
[359047923,1745674239561,-400.0,0.0001998,2]
[359047925,1745674239570,-800.97,0.0001998,2]
[359047927,1745674239580,-570.31,0.0001998,2]
[359047929,1745674239589,-1539.47,0.0001998,2]
[359047931,1745674239598,-561.81,0.0001998,2]
[359047933,1745674239608,-487.26,0.0001998,2]
[359047935,1745674239617,-1045.27,0.0001998,2]
[359047937,1745674239627,-8507.51,0.0001998,2]
[359047939,1745674239637,-671.46,0.0001998,2]
[359047941,1745674239647,-684.6,0.0001998,2]
[359047943,1745674239656,-400.0,0.0001998,2]
[359047945,1745674239666,-400.0,0.0001998,2]
[359047947,1745674239677,-400.0,0.0001998,2]
[359047949,1745674239687,-400.0,0.0001998,2]
[359047951,1745674239697,-400.0,0.0001998,2]
[359047953,1745674239707,-1206.17,0.0001998,2]
[359047955,1745674239717,-669.42,0.0001998,2]
[359047957,1745674239727,-798.02,0.0001998,2]
[359047960,1745674239737,-400.0,0.0001998,2]
[359047962,1745674239747,-1883.41,0.0001998,2]
[359047963,1745674239757,-400.0,0.0001998,2]
[359047964,1745674239767,-497.01,0.0001998,2]
[359047965,1745674239776,-400.0,0.0001998,2]
[359047966,1745674239785,-400.0,0.0001998,2]
[359047967,1745674239795,-605.38,0.0001998,2]
[359047968,1745674239808,-1134.18,0.0001998,2]
[359047969,1745674239818,-688.84,0.0001998,2]
[359047970,1745674239828,-534.43,0.0001998,2]
[359047971,1745674239837,-152.68415493,0.0001998,2]
[359047972,1745674239847,-500.0,0.0001998,2]
[359047973,1745674239856,-418.86,0.0001998,2]
[359047974,1745674239866,-844.46,0.00019981,2]
[359047975,1745674239876,-543.46328275,0.00019981,2]
[359047976,1745674239887,-400.0,0.00019981,2]
[359047977,1745674239897,-400.0,0.00019981,2]
[359047978,1745674239906,-400.0,0.00019981,2]
[359047979,1745674239915,-400.0,0.00019981,2]
[359047981,1745674239925,-400.0,0.00019981,2]
[359047983,1745674239934,-400.0,0.00019981,2]
[359047985,1745674239943,-206.17668263,0.00019981,2]
[359047987,1745674239953,-186.8939025,0.00019981,2]
[359047989,1745674239963,-400.0,0.00019981,2]
[359047991,1745674239972,-695.21,0.00019981,2]
[359047993,1745674239982,-1834.14,0.00019981,2]
[359047995,1745674239991,-564.35,0.00019981,2]
[359047997,1745674240002,-400.0,0.00019981,2]
[359047999,1745674240012,-400.0,0.00019981,2]
[359048001,1745674240021,-400.0,0.00019981,2]
[359048003,1745674240031,-400.0,0.00019981,2]
[359048005,1745674240042,-494.84844796,0.00019981,2]
[359048007,1745674240052,-400.0,0.00019981,2]
[359048009,1745674240062,-400.0,0.00019981,2]
[359048011,1745674240072,-407.21,0.00019981,2]
[359048013,1745674240082,-505.33086124,0.00019981,2]
[359048015,1745674240094,-400.0,0.00019981,2]
[359048017,1745674240103,-400.0,0.00019981,2]
[359048019,1745674240113,-400.0,0.00019981,2]
[359048021,1745674240123,-400.0,0.00019981,2]
[359048023,1745674240133,-400.0,0.00019981,2]
[359048025,1745674240142,-400.0,0.00019981,2]
[359048027,1745674240152,-400.0,0.00019981,2]
[359048029,1745674240162,-400.0,0.00019981,2]
[359048031,1745674240171,-400.0,0.00019981,2]
[359048033,1745674240180,-400.0,0.00019981,2]
[359048035,1745674240190,-400.0,0.00019981,2]
[359048037,1745674240200,-400.0,0.00019981,2]
[359048039,1745674240209,-500.0,0.00019981,2]
[359048041,1745674240219,-250.0,0.00019981,2]
[359048043,1745674240228,-400.0,0.00019981,2]
[359048045,1745674240238,-400.0,0.00019981,2]
[359048047,1745674240247,-400.0,0.00019981,2]
[359048049,1745674240257,-400.0,0.00019981,2]
[359048051,1745674240267,-400.0,0.00019981,2]
[359048053,1745674240277,-400.0,0.00019981,2]
[359048055,1745674240286,-651.21,0.00019981,2]
[359048058,1745674240296,-400.0,0.00019981,2]
[359048059,1745674240305,-400.0,0.00019981,2]
[359048061,1745674240315,-400.0,0.00019981,2]
[359048063,1745674240324,-400.0,0.00019981,2]
[359048065,1745674240334,-436.81,0.00019981,2]
[359048068,1745674240344,-400.0,0.00019981,2]
[359048070,1745674240354,-400.0,0.00019981,2]
[359048072,1745674240364,-400.0,0.00019981,2]
[359048074,1745674240373,-400.0,0.00019981,2]
[359048076,1745674240383,-400.0,0.00019981,2]
[359048078,1745674240393,-400.0,0.00019981,2]
[359048080,1745674240403,-400.0,0.00019981,2]
[359048082,1745674240413,-400.0,0.00019981,2]
[359048084,1745674240425,-500.0,0.00019981,2]
[359048086,1745674240435,-400.0,0.00019981,2]
[359048088,1745674240444,-686.58,0.00019981,2]
[359048090,1745674240455,-349.36704385,0.00019981,2]
[359048092,1745674240464,-400.0,0.00019981,2]
[359048094,1745674240474,-227.76187215,0.00019981,2]
[359048096,1745674240484,-1116.6,0.00019981,2]
[359048098,1745674240494,-400.0,0.00019981,2]
[359048100,1745674240505,-472.76,0.00019981,2]
[359048102,1745674240516,-400.0,0.00019981,2]
[359048104,1745674240526,-400.0,0.00019981,2]
[359048106,1745674240538,-400.0,0.00019981,2]
[359048108,1745674240547,-400.0,0.00019981,2]
[359048110,1745674240557,-400.0,0.00019981,2]
[359048112,1745674240567,-400.0,0.00019981,2]
[359048114,1745674240578,-559.1,0.00019981,2]
[359048116,1745674240588,-400.0,0.00019981,2]
[359048118,1745674240598,-431.79,0.00019981,2]
[359048120,1745674240608,-400.0,0.00019981,2]
[359048122,1745674240619,-400.0,0.00019981,2]
[359048124,1745674240628,-400.0,0.00019981,2]
[359048126,1745674240638,-400.0,0.00019981,2]
[359048128,1745674240648,-400.0,0.00019981,2]
[359048130,1745674240658,-183.29250345,0.00019981,2]
[359048132,1745674240667,-400.0,0.00019981,2]
[359048134,1745674240678,-424.51,0.00019981,2]
[359048136,1745674240688,-400.0,0.00019981,2]
[359048138,1745674240698,-400.0,0.00019981,2]
[359048140,1745674240708,-400.0,0.00019981,2]
[359048142,1745674240717,-675.47,0.00019981,2]
[359048144,1745674240727,-400.0,0.00019981,2]
[359048146,1745674240737,-817.11,0.00019981,2]
[359048148,1745674240747,-926.57,0.00019981,2]
[359048150,1745674240757,-400.0,0.00019981,2]
[359048152,1745674240767,-400.0,0.00019981,2]
[359048154,1745674240777,-400.0,0.00019981,2]
[359048156,1745674240787,-709.81,0.00019981,2]
[359048159,1745674240798,-400.0,0.00019981,2]
[359048161,1745674240811,-779.29,0.00019981,2]
[359048163,1745674240821,-400.0,0.00019981,2]
[359048165,1745674240830,-551.18,0.00019981,2]
[359048167,1745674240839,-400.0,0.00019981,2]
[359048169,1745674240850,-400.0,0.00019981,2]
[359048171,1745674240859,-400.0,0.00019981,2]
[359048173,1745674240868,-400.0,0.00019981,2]
[359048174,1745674240880,-808.47,0.00019981,2]
[359048176,1745674240890,-166.68953543,0.00019981,2]
[359048178,1745674240900,-327.85384651,0.00019981,2]
[359048180,1745674240909,-400.0,0.00019981,2]
[359048182,1745674240919,-400.0,0.00019981,2]
[359048184,1745674240928,-681.98,0.00019981,2]
[359048186,1745674240938,-731.15,0.00019981,2]
[359048188,1745674240947,-965.56,0.00019981,2]
[359048190,1745674240956,-400.0,0.00019981,2]
[359048192,1745674240965,-687.05,0.00019981,2]
[359048194,1745674240975,-487.55,0.00019981,2]
[359048196,1745674240984,-592.28,0.00019981,2]
[359048198,1745674240993,-400.0,0.00019981,2]
[359048200,1745674241003,-400.0,0.00019981,2]
[359048202,1745674241014,-1110.91,0.00019981,2]
[359048204,1745674241024,-427.53,0.00019981,2]
[359048207,1745674241034,-400.0,0.00019981,2]
[359048209,1745674241045,-400.0,0.00019981,2]
[359048211,1745674241054,-150.57996944,0.00019981,2]
[359048213,1745674241064,-430.81,0.00019981,2]
[359048215,1745674241074,-528.68,0.00019981,2]
[359048240,1745674241312,-702.39,0.00019981,2]
[359048242,1745674241323,-400.0,0.00019981,2]
[359048244,1745674241333,-400.0,0.00019981,2]
[359048246,1745674241343,-658.91,0.00019981,2]
[359048248,1745674241353,-569.65,0.00019981,2]
[359048250,1745674241363,-400.0,0.00019981,2]
[359048252,1745674241373,-400.0,0.00019981,2]
[359048254,1745674241383,-400.0,0.00019981,2]
[359048257,1745674241393,-400.0,0.00019981,2]
[359048259,1745674241403,-473.34,0.00019981,2]
[359048261,1745674241413,-400.0,0.00019981,2]
[359048263,1745674241423,-400.0,0.00019981,2]
[359048265,1745674241433,-890.88,0.00019981,2]
[359048267,1745674241443,-702.14,0.00019981,2]
[359048269,1745674241453,-789.17,0.00019981,2]
[359048271,1745674241463,-451.71,0.00019981,2]
[359048273,1745674241473,-405.57,0.00019981,2]
[359048275,1745674241484,-733.86,0.00019981,2]
[359048277,1745674241494,-400.0,0.00019981,2]
[359048279,1745674241504,-169.18094099,0.00019981,2]
[359048281,1745674241514,-400.0,0.00019981,2]
[359048283,1745674241524,-400.0,0.00019981,2]
[359048285,1745674241534,-400.0,0.00019981,2]
[359048287,1745674241544,-1037.66,0.00019981,2]
[359048289,1745674241554,-641.76,0.00019981,2]
[359048291,1745674241563,-400.0,0.00019981,2]
[359048293,1745674241574,-420.52100749,0.00019981,2]
[359048295,1745674241584,-591.85,0.00019981,2]
[359048297,1745674241594,-400.0,0.00019981,2]
[359048299,1745674241603,-400.0,0.00019981,2]
[359048301,1745674241613,-400.0,0.00019981,2]
[359048303,1745674241623,-400.0,0.00019981,2]
[359048305,1745674241635,-400.0,0.00019981,2]
[359048307,1745674241645,-400.0,0.00019981,2]
[359048309,1745674241655,-400.0,0.00019981,2]
[359048311,1745674241664,-400.0,0.00019981,2]
[359048313,1745674241674,-400.0,0.00019981,2]
[359048315,1745674241684,-1802.23,0.00019981,2]
[359048317,1745674241694,-400.0,0.00019981,2]
[359048319,1745674241704,-715.1,0.00019981,2]
[359048321,1745674241714,-400.0,0.00019981,2]
[359048323,1745674241723,-400.0,0.00019981,2]
[359048325,1745674241734,-1619.87,0.00019981,2]
[359048327,1745674241744,-637.6,0.00019981,2]
[359048330,1745674241754,-400.0,0.00019981,2]
[359048332,1745674241764,-400.0,0.00019981,2]
[359048334,1745674241774,-400.0,0.00019981,2]
[359048336,1745674241783,-400.0,0.00019981,2]
[359048338,1745674241793,-599.35,0.00019981,2]
[359048340,1745674241806,-400.0,0.00019981,2]
[359048342,1745674241816,-815.87,0.00019981,2]
[359048344,1745674241827,-400.0,0.00019981,2]
[359048346,1745674241837,-400.0,0.00019981,2]
[359048348,1745674241847,-2019.61,0.00019981,2]
[359048350,1745674241857,-400.0,0.00019981,2]
[359048352,1745674241866,-400.0,0.00019981,2]
[359048354,1745674241878,-400.0,0.00019981,2]
[359048356,1745674241888,-400.0,0.00019981,2]
[359048358,1745674241898,-401.62,0.00019981,2]
[359048360,1745674241908,-400.0,0.00019981,2]
[359048362,1745674241917,-567.07,0.00019981,2]
[359048364,1745674241927,-400.0,0.00019981,2]
[359048366,1745674241937,-400.0,0.00019981,2]
[359048368,1745674241947,-714.02,0.00019981,2]
[359048370,1745674241956,-400.0,0.00019981,2]
[359048372,1745674241966,-511.79,0.00019981,2]
[359048374,1745674241976,-400.0,0.00019981,2]
[359048376,1745674241985,-791.09,0.00019981,2]
[359048378,1745674241996,-400.0,0.00019981,2]
[359048380,1745674242005,-400.0,0.00019981,2]
[359048382,1745674242015,-511.08,0.00019981,2]
[359048384,1745674242025,-400.0,0.00019981,2]
[359048386,1745674242036,-400.0,0.00019981,2]
[359048388,1745674242045,-856.67,0.00019981,2]
[359048390,1745674242055,-533.92,0.00019981,2]
[359048392,1745674242065,-400.0,0.00019981,2]
[359048394,1745674242075,-400.0,0.00019981,2]
[359048396,1745674242085,-400.0,0.00019981,2]
[359048398,1745674242095,-660.5,0.00019981,2]
[359048400,1745674242106,-490.2,0.00019981,2]
[359048402,1745674242116,-400.0,0.00019981,2]
[359048404,1745674242125,-680.61,0.00019981,2]
[359048406,1745674242136,-628.0,0.00019981,2]
[359048408,1745674242145,-767.41,0.00019981,2]
[359048410,1745674242155,-745.25,0.00019981,2]
[359048412,1745674242165,-401.64,0.00019981,2]
[359048414,1745674242175,-400.0,0.00019981,2]
[359048417,1745674242186,-482.24,0.00019981,2]
[359048419,1745674242196,-437.98246931,0.00019981,2]
[359048421,1745674242206,-400.0,0.00019981,2]
[359048423,1745674242216,-682.82,0.00019981,2]
[359048425,1745674242226,-690.95,0.00019981,2]
[359048427,1745674242236,-424.83,0.00019981,2]
[359048429,1745674242245,-400.0,0.00019981,2]
[359048431,1745674242255,-443.62640003,0.00019981,2]
[359048433,1745674242265,-4185.23,0.00019981,2]
[359048435,1745674242275,-400.0,0.00019981,2]
[359048437,1745674242285,-400.0,0.00019981,2]
[359048439,1745674242295,-400.0,0.00019981,2]
[359048441,1745674242304,-400.0,0.00019981,2]
[359048443,1745674242314,-482.64,0.00019981,2]
[359048445,1745674242325,-698.37,0.00019981,2]
[359048447,1745674242335,-400.0,0.00019981,2]
[359048449,1745674242345,-400.0,0.00019981,2]
[359048451,1745674242355,-500.0,0.00019981,2]
[359048453,1745674242365,-400.0,0.00019981,2]
[359048455,1745674242375,-2611.0,0.00019981,2]
[359048457,1745674242386,-817.11,0.00019981,2]
[359048459,1745674242396,-500.0,0.00019981,2]
[359048462,1745674242406,-200.0,0.00019981,2]
[359048464,1745674242415,-500.0,0.00019981,2]
[359048467,1745674242425,-400.0,0.00019981,2]
[359048469,1745674242435,-635.57,0.00019981,2]
[359048471,1745674242445,-400.0,0.00019981,2]
[359048473,1745674242455,-837.34,0.00019981,2]
[359048474,1745674242464,-478.14,0.00019981,2]
[359048477,1745674242474,-400.0,0.00019981,2]
[359048480,1745674242484,-400.0,0.00019981,2]
[359048482,1745674242493,-400.0,0.00019981,2]
[359048485,1745674242503,-400.0,0.00019981,2]
[359048487,1745674242513,-400.0,0.00019981,2]
[359048489,1745674242523,-400.0,0.00019981,2]
[359048491,1745674242533,-400.0,0.00019981,2]
[359048494,1745674242543,-546.83,0.00019981,2]
[359048497,1745674242553,-400.0,0.00019981,2]
[359048498,1745674242562,-400.0,0.00019981,2]
[359048502,1745674242573,-530.37,0.00019981,2]
[359048504,1745674242583,-200.0,0.00019981,2]
[359048506,1745674242592,-400.0,0.00019981,2]
[359048508,1745674242602,-400.0,0.00019981,2]
[359048510,1745674242612,-400.0,0.00019981,2]
[359048513,1745674242622,-400.0,0.00019981,2]
[359048514,1745674242631,-400.0,0.00019981,2]
[359048516,1745674242641,-200.0,0.00019981,2]
[359048518,1745674242651,-200.0,0.00019981,2]
[359048520,1745674242661,-400.0,0.00019981,2]
[359048522,1745674242670,-400.0,0.00019981,2]
[359048524,1745674242680,-429.77,0.00019981,2]
[359048526,1745674242690,-400.0,0.00019981,2]
[359048529,1745674242700,-400.0,0.00019981,2]
[359048531,1745674242709,-400.0,0.00019981,2]
[359048533,1745674242719,-714.12,0.00019981,2]
[359048535,1745674242729,-400.0,0.00019981,2]
[359048537,1745674242739,-400.0,0.00019981,2]
[359048538,1745674242748,-400.0,0.00019981,2]
[359048541,1745674242759,-400.0,0.00019981,2]
[359048543,1745674242769,-400.0,0.00019981,2]
[359048545,1745674242779,-400.0,0.00019981,2]
[359048547,1745674242790,-583.39,0.00019981,2]
[359048549,1745674242802,-400.0,0.00019981,2]
[359048551,1745674242812,-400.0,0.00019981,2]
[359048553,1745674242821,-400.0,0.00019981,2]
[359048555,1745674242831,-400.0,0.00019981,2]
[359048557,1745674242841,-3201.27,0.00019981,2]
[359048559,1745674242851,-400.0,0.00019981,2]
[359048561,1745674242860,-400.0,0.00019981,2]
[359048563,1745674242870,-3683.38,0.00019981,2]
[359048565,1745674242880,-285.99379223,0.00019981,2]
[359048566,1745674242891,-400.0,0.00019981,2]
[359048567,1745674242900,-400.0,0.00019981,2]
[359048568,1745674242910,-825.44,0.00019981,2]
[359048569,1745674242919,-200.0,0.00019981,2]
[359048570,1745674242929,-400.0,0.00019981,2]
[359048571,1745674242939,-400.0,0.00019981,2]
[359048572,1745674242948,-400.0,0.00019981,2]
[359048573,1745674242958,-591.6,0.00019981,2]
[359048574,1745674242967,-881.72,0.00019981,2]